bitfinex/quotes_BTCUSD_20251226
["timestamp","ask_amount","ask_price","bid_price","bid_amount"]
[1766716677400,0.01120385,89255.0,89239.0,1.41187586]
[1766716677566,0.0112036,89257.0,89240.0,0.01120573]
[1766716677765,1.37584,89255.0,89240.0,0.00035888]
[1766716678112,0.01120397,89254.0,89240.0,0.00035888]
[1766716678524,0.0112041,89253.0,89240.0,0.00035888]
[1766716678670,0.01120423,89252.0,89240.0,0.00035888]
[1766716678858,0.01120423,89252.0,89234.0,0.00029181]
[1766716678859,0.01120548,89242.0,89234.0,0.00029181]
[1766716679059,0.01120548,89242.0,89200.0,0.39785476]
[1766716679060,0.01120598,89238.0,89219.0,1.40067]
[1766716679282,0.01120598,89238.0,89218.0,0.0112085]
[1766716679485,0.39785476,89230.0,89216.0,0.01120875]
[1766716679662,0.39785476,89230.0,89219.0,0.01120837]
[1766716679864,0.39785476,89230.0,89220.0,0.01120824]
[1766716680060,0.39785476,89230.0,89219.0,0.01120837]
[1766716680061,0.39785476,89230.0,89218.0,0.0112085]
[1766716680286,0.39785476,89230.0,89219.0,0.01120837]
[1766716680489,0.39785476,89230.0,89220.0,0.01120824]
[1766716680723,0.01120498,89246.0,89228.0,0.06724336]
[1766716680919,1.39376185,89270.0,89239.0,1.40067]
[1766716681120,0.01120335,89259.0,89242.0,0.01120548]
[1766716681466,0.01120335,89259.0,89239.0,0.00010781]
[1766716681467,0.01120222,89268.0,89245.0,0.0112051]
[1766716681613,0.01120134,89275.0,89245.0,1.40067]
[1766716681963,0.01120134,89275.0,89239.0,0.00010781]
[1766716681964,0.01120059,89281.0,89264.0,0.01120272]
[1766716682155,0.01120059,89281.0,89260.0,1.40067]
[1766716682156,0.01120071,89280.0,89263.0,0.01120285]
[1766716682297,0.01120071,89280.0,89250.0,0.39785476]
[1766716682298,0.39785476,89273.0,89256.0,0.01120372]
[1766716682497,0.39785476,89273.0,89253.0,1.40067]
[1766716682498,0.01120197,89270.0,89253.0,1.40067]
[1766716682855,0.06721089,89272.0,89253.0,1.4118741]
[1766716682997,0.00871704,89269.0,89253.0,1.4118741]
[1766716683200,0.01120197,89270.0,89253.0,1.4118741]
[1766716683502,0.01120096,89278.0,89261.0,0.0112031]
[1766716683705,0.01120121,89276.0,89260.0,0.01120322]
[1766716683911,0.01120121,89276.0,89259.0,0.01120335]
[1766716684111,0.01120096,89278.0,89261.0,0.0112031]
[1766716684493,0.01120046,89282.0,89261.0,0.06721853]
[1766716684682,0.01120159,89273.0,89253.0,1.40067]
[1766716684883,0.01120172,89272.0,89255.0,0.01120385]
[1766716685085,0.01120184,89271.0,89255.0,0.01120385]
[1766716685290,0.01120172,89272.0,89255.0,0.01120385]
[1766716686250,0.01120197,89270.0,89254.0,1.40067]
[1766716686454,0.01120272,89264.0,89242.0,0.01120548]
[1766716686695,1.37584,89271.0,89240.0,0.01120573]
[1766716686696,0.01120347,89258.0,89240.0,0.01120573]
[1766716686926,0.01120372,89256.0,89239.0,0.01131367]
[1766716687209,0.01120385,89255.0,89239.0,0.00010781]
[1766716687410,0.0112046,89249.0,89239.0,0.00010781]
[1766716687550,0.01120435,89251.0,89239.0,0.00010781]
[1766716687752,0.0112041,89253.0,89239.0,0.00010781]
[1766716688169,0.01120423,89252.0,89239.0,0.00010781]
[1766716688699,0.01120435,89251.0,89239.0,0.00010781]
[1766716689101,0.0087193,89251.0,89239.0,0.00010781]
[1766716689302,0.01120448,89250.0,89239.0,0.00010781]
[1766716689521,0.01120498,89246.0,89239.0,0.00010781]
[1766716689712,0.05602617,89244.0,89227.0,0.01120736]
[1766716689871,0.01120536,89243.0,89226.0,0.00024318]
[1766716690069,0.01120548,89242.0,89226.0,0.01145067]
[1766716690272,0.01131276,89244.0,89227.0,0.01120736]
[1766716690595,0.00010753,89244.0,89236.0,0.01120623]
[1766716690762,0.01148,89251.0,89234.0,1.41187649]
[1766716690763,0.01120448,89250.0,89234.0,1.41187649]
[1766716690961,0.01120448,89250.0,89234.0,1.41198402]
[1766716691375,0.01148,89251.0,89235.0,0.01120636]
[1766716691595,0.62191932,89260.0,89234.0,1.41198402]
[1766716691596,0.01120335,89259.0,89242.0,0.01120548]
[1766716691792,0.0112036,89257.0,89241.0,0.01120561]
[1766716692113,0.01120297,89262.0,89245.0,0.0112051]
[1766716692278,0.01120322,89260.0,89244.0,0.01120523]
[1766716692502,0.01120322,89260.0,89243.0,0.01120536]
[1766716693098,0.01120347,89258.0,89239.0,0.05602902]
[1766716693328,0.01120322,89260.0,89241.0,0.01120561]
[1766716693536,0.06722181,89257.0,89239.0,0.01120586]
[1766716693741,0.0112036,89257.0,89240.0,0.01120573]
[1766716693919,0.0112036,89257.0,89239.0,0.01120586]
[1766716693920,0.01120385,89255.0,89239.0,0.01120586]
[1766716694131,0.01120385,89255.0,89238.0,0.01120598]
[1766716694279,0.01120385,89255.0,89239.0,0.01120586]
[1766716694736,0.01120385,89255.0,89238.0,0.01120598]
[1766716694737,0.39785476,89250.0,89234.0,0.00010753]
[1766716694947,0.0112051,89245.0,89234.0,0.00010753]
[1766716695306,0.0112051,89245.0,89223.0,0.01120787]
[1766716695307,0.01120573,89240.0,89223.0,0.01120787]
[1766716695509,0.01130624,89240.0,89223.0,0.01120787]
[1766716695729,0.01120598,89238.0,89222.0,0.01120799]
[1766716695941,0.01120598,89238.0,89221.0,0.06724812]
[1766716696179,0.01120736,89227.0,89211.0,0.01120938]
[1766716696389,0.01120736,89227.0,89209.0,0.01120963]
[1766716696606,1.50469711,89229.0,89210.0,0.067257]
[1766716696824,0.01120736,89227.0,89210.0,0.0112095]
[1766716697034,0.01120749,89226.0,89209.0,0.01120963]
[1766716697246,0.01120749,89226.0,89210.0,0.0112095]
[1766716697698,0.01120749,89226.0,89205.0,1.49750035]
[1766716697699,0.0112095,89210.0,89191.0,0.05605921]
[1766716697892,0.01121025,89204.0,89186.0,0.01121252]
[1766716698031,0.39785476,89210.0,89189.0,0.01121214]
[1766716698032,0.01120975,89208.0,89189.0,0.01121214]
[1766716698232,0.39785476,89210.0,89189.0,0.01121214]
[1766716698430,0.01120963,89209.0,89193.0,0.01121164]
[1766716698683,0.01120912,89213.0,89197.0,0.01121113]
[1766716698903,0.01120925,89212.0,89195.0,0.01121139]
[1766716699096,0.0112095,89210.0,89194.0,0.01121151]
[1766716699256,0.06725795,89209.0,89190.0,0.01121201]
[1766716699461,0.01120988,89207.0,89191.0,0.01121189]
[1766716699692,0.01120988,89207.0,89190.0,0.01121201]
[1766716699936,1.50469938,89211.0,89194.0,0.01121151]
[1766716700163,0.01120963,89209.0,89193.0,0.01121164]
[1766716700406,1.50469938,89211.0,89195.0,0.01121139]
[1766716700571,0.05615379,89213.0,89191.0,0.05605926]
[1766716700572,0.00010757,89213.0,89196.0,1.44145]
[1766716700750,1.49349,89223.0,89196.0,1.44145]
[1766716700751,0.05603867,89225.0,89206.0,0.01121]
[1766716701071,0.01120749,89226.0,89206.0,0.01121]
[1766716701072,0.01120774,89224.0,89207.0,0.01120988]
[1766716701566,0.01120774,89224.0,89208.0,0.00112096]
[1766716701768,0.01120774,89224.0,89207.0,0.00112096]
[1766716701972,0.01120812,89221.0,89206.0,0.00035866]
[1766716702348,0.01120824,89220.0,89206.0,0.00035866]
[1766716702517,0.01120925,89212.0,89206.0,0.00035866]
[1766716702719,0.0112095,89210.0,89204.0,0.05]
[1766716702943,0.06761597,89210.0,89192.0,0.01121176]
[1766716703155,0.01120975,89208.0,89192.0,0.01121176]
[1766716703569,0.01120988,89207.0,89191.0,0.01148]
[1766716703768,0.01121,89206.0,89191.0,0.01148]
[1766716704171,0.01121013,89205.0,89191.0,0.01148]
[1766716704547,0.01121025,89204.0,89191.0,0.01148]
[1766716704776,0.01121051,89202.0,89191.0,0.01148]
[1766716704948,0.01121051,89202.0,89184.0,0.0004]
[1766716704949,0.01121088,89199.0,89184.0,0.0004]
[1766716705155,0.22419935,89207.0,89184.0,0.0004]
[1766716705156,1.49349,89228.0,89199.0,0.000549]
[1766716705352,0.011209,89214.0,89199.0,0.00090788]
[1766716705604,0.01120875,89216.0,89199.0,0.00035888]
[1766716705804,0.01792185,89226.0,89199.0,0.00035888]
[1766716705805,0.07872464,89227.0,89204.0,0.01121025]
[1766716706004,0.02268736,89227.0,89216.0,0.00055]
[1766716706302,1.50469724,89228.0,89210.0,0.0112095]
[1766716706303,0.01148,89226.0,89210.0,0.0112095]
[1766716706503,0.00011725,89226.0,89212.0,0.01120925]
[1766716706702,0.01120875,89216.0,89206.0,1.44145]
[1766716706907,0.01120875,89216.0,89199.0,0.01156976]
[1766716706908,0.01120862,89217.0,89199.0,0.01156976]
[1766716707123,0.01120875,89216.0,89200.0,0.01121076]
[1766716707256,0.01120837,89219.0,89201.0,0.01121063]
[1766716707450,0.06725227,89217.0,89199.0,0.00035888]
[1766716707663,0.01120799,89222.0,89204.0,0.01121025]
[1766716707888,0.01120812,89221.0,89211.0,0.00045586]
[1766716708120,0.01120812,89221.0,89200.0,0.0560536]
[1766716708121,0.01120837,89219.0,89200.0,0.0560536]
[1766716708418,0.01120837,89219.0,89203.0,0.01121038]
[1766716708563,0.01120837,89219.0,89202.0,0.01121051]
[1766716708764,0.06725025,89219.0,89201.0,0.01121063]
[1766716709538,0.06725025,89219.0,89199.0,0.05641316]
[1766716709539,0.05604368,89217.0,89199.0,0.00035888]
[1766716709721,0.01120875,89216.0,89200.0,0.01121076]
[1766716709939,0.0112085,89218.0,89201.0,0.01121063]
[1766716710137,0.06724906,89221.0,89202.0,0.01121051]
[1766716710340,0.01120812,89221.0,89218.0,0.000549]
[1766716710518,0.06724925,89221.0,89218.0,0.000549]
[1766716710886,0.01148,89226.0,89221.0,0.00055]
[1766716711085,0.02268749,89226.0,89221.0,0.00055]
[1766716711424,0.01120812,89221.0,89205.0,0.01121013]
[1766716711594,0.01120799,89222.0,89205.0,0.01121013]
[1766716711792,0.01120799,89222.0,89204.0,1.45266025]
[1766716711987,0.01120812,89221.0,89205.0,0.01121013]
[1766716712454,0.01120799,89222.0,89206.0,0.01121]
[1766716712660,0.01120824,89220.0,89204.0,1.45266025]
[1766716713058,0.01120837,89219.0,89204.0,1.44145]
[1766716713310,0.01120887,89215.0,89195.0,0.01121139]
[1766716713478,0.224159,89223.0,89199.0,0.00035888]
[1766716713479,0.01120912,89213.0,89199.0,0.00035888]
[1766716713678,0.01120938,89211.0,89199.0,0.00035888]
[1766716713897,0.01120925,89212.0,89199.0,0.00035888]
[1766716714197,0.0112095,89210.0,89199.0,0.00035888]
[1766716714692,0.01120938,89211.0,89199.0,0.00035888]
[1766716715079,0.05604925,89208.0,89199.0,0.00035888]
[1766716715286,0.01120963,89209.0,89199.0,0.00035888]
[1766716715482,0.3362175,89228.0,89193.0,1.44145]
[1766716715483,0.000358,89199.0,89193.0,1.43008725]
[1766716715684,0.01156976,89199.0,89193.0,1.42989625]
[1766716715911,0.00035888,89199.0,89193.0,1.42989625]
[1766716716420,0.00035888,89199.0,89184.0,0.0004]
[1766716716645,0.01156976,89199.0,89184.0,0.0004]
[1766716716769,0.01121101,89198.0,89184.0,0.0004]
[1766716716969,0.01156976,89199.0,89184.0,0.0004]
[1766716716970,0.01121164,89193.0,89184.0,0.0004]
[1766716717481,0.01121176,89192.0,89184.0,0.0004]
[1766716718563,0.01121201,89190.0,89184.0,0.0004]
[1766716718730,0.01121239,89187.0,89184.0,4.1e-05]
[1766716719637,0.06727491,89187.0,89184.0,4.1e-05]
[1766716719881,0.0672749,89187.0,89184.0,4.1e-05]
[1766716720088,0.05606323,89185.0,89184.0,4.1e-05]
[1766716720385,0.05606323,89185.0,89168.0,0.0004]
[1766716720386,0.01121302,89182.0,89168.0,0.0004]
[1766716720587,0.01121365,89177.0,89168.0,0.0004]
[1766716720794,0.01121377,89176.0,89168.0,0.0004]
[1766716720962,0.01121365,89177.0,89168.0,0.0004]
[1766716720963,0.01121428,89172.0,89168.0,0.0004]
[1766716721161,0.01121365,89177.0,89168.0,0.0004]
[1766716721363,0.01121415,89173.0,89168.0,0.0004]
[1766716721684,0.01121352,89178.0,89168.0,0.0004]
[1766716721685,0.01121289,89183.0,89173.0,0.000549]
[1766716721839,0.01121176,89192.0,89183.0,0.00055]
[1766716722039,0.01121176,89192.0,89171.0,0.06728626]
[1766716722040,0.01069208,89190.0,89171.0,0.06728626]
[1766716722295,0.01121227,89188.0,89172.0,0.01121428]
[1766716722584,0.01121239,89187.0,89171.0,0.0112144]
[1766716722819,0.01121252,89186.0,89171.0,0.0112144]
[1766716723022,0.01121239,89187.0,89171.0,0.0112144]
[1766716723492,0.01121252,89186.0,89170.0,0.01121453]
[1766716723709,0.01121252,89186.0,89171.0,0.0112144]
[1766716723854,0.01121264,89185.0,89168.0,0.0004]
[1766716724056,0.58452017,89190.0,89168.0,0.0004]
[1766716724057,0.01121352,89178.0,89168.0,0.0004]
[1766716724257,0.01121377,89176.0,89168.0,0.0004]
[1766716724662,0.01121365,89177.0,89168.0,0.0004]
[1766716724891,0.05607267,89170.0,89168.0,0.0004]
[1766716725046,0.0112144,89171.0,89168.0,0.0004]
[1766716725454,0.05607327,89170.0,89168.0,1e-08]
[1766716727861,0.05607327,89170.0,89154.0,0.0004]
[1766716727862,0.05608137,89157.0,89154.0,0.0004]
[1766716728309,0.06729644,89158.0,89154.0,0.0004]
[1766716728513,0.01144,89159.0,89158.0,0.000549]
[1766716728716,0.01144,89159.0,89154.0,0.0004]
[1766716728717,0.01089,89159.0,89154.0,0.0004]
[1766716729037,0.01121604,89158.0,89155.0,0.00050757]
[1766716729229,0.05608084,89157.0,89155.0,0.00050757]
[1766716729402,0.05608084,89157.0,89155.0,5.7e-07]
[1766716729763,0.07818569,89159.0,89135.0,0.01121893]
[1766716729764,0.01121679,89152.0,89135.0,0.01121893]
[1766716730006,0.01121679,89152.0,89135.0,0.01132675]
[1766716730007,0.01121692,89151.0,89135.0,0.01132675]
[1766716730208,0.01121742,89147.0,89135.0,0.00010782]
[1766716730415,0.01121767,89145.0,89135.0,0.00010782]
[1766716730620,0.05608776,89146.0,89135.0,0.00010782]
[1766716730621,0.0112178,89144.0,89135.0,0.00010782]
[1766716730821,0.01121818,89141.0,89135.0,0.00010782]
[1766716731184,0.0112178,89144.0,89135.0,0.00010782]
[1766716731185,0.01121793,89143.0,89140.0,0.00139969]
[1766716731385,0.01121793,89143.0,89135.0,0.00010782]
[1766716731386,0.01144,89143.0,89135.0,0.00010782]
[1766716731534,0.010934,89143.0,89135.0,0.00010782]
[1766716732165,0.01121818,89141.0,89135.0,0.00010782]
[1766716732344,0.06731185,89138.0,89135.0,0.00010782]
[1766716732518,0.06731181,89138.0,89135.0,0.00010782]
[1766716732904,0.01121855,89138.0,89135.0,8.2e-07]
[1766716733109,0.01121843,89139.0,89135.0,8.2e-07]
[1766716733314,0.0112183,89140.0,89135.0,8.2e-07]
[1766716733514,0.06730944,89141.0,89135.0,8.2e-07]
[1766716733515,0.01121818,89141.0,89135.0,8.2e-07]
[1766716733955,0.01121843,89139.0,89135.0,8.2e-07]
[1766716734195,0.0112183,89140.0,89135.0,8.2e-07]
[1766716734311,0.01121843,89139.0,89135.0,8.2e-07]
[1766716734512,0.0112183,89140.0,89135.0,8.2e-07]
[1766716734810,0.06731186,89138.0,89135.0,8.2e-07]
[1766716735667,0.05609405,89136.0,89135.0,8.2e-07]
[1766716736016,0.01121843,89139.0,89136.0,0.0007]
[1766716736217,0.010934,89143.0,89124.0,0.01122032]
[1766716736417,0.010934,89143.0,89123.0,0.01162044]
[1766716736418,0.06730833,89142.0,89123.0,0.01162044]
[1766716736619,0.01121843,89139.0,89124.0,0.01122032]
[1766716736853,0.01121855,89138.0,89123.0,0.0004]
[1766716737059,0.01121906,89134.0,89123.0,0.0004]
[1766716737263,0.01121931,89132.0,89123.0,0.0004]
[1766716737437,0.01121969,89129.0,89123.0,0.0004]
[1766716737640,0.01121994,89127.0,89123.0,0.0004]
[1766716737873,0.01121956,89130.0,89108.0,0.06733375]
[1766716737874,0.01121956,89130.0,89112.0,0.01122183]
[1766716738065,0.01121981,89128.0,89112.0,0.01122183]
[1766716738267,0.01121994,89127.0,89112.0,0.01122183]
[1766716738585,0.01122007,89126.0,89106.0,0.06733525]
[1766716738784,0.01121969,89129.0,89109.0,0.06733321]
[1766716739085,0.01121893,89135.0,89129.0,0.0004]
[1766716739311,0.00010758,89143.0,89129.0,0.0004]
[1766716739450,0.01148,89142.0,89117.0,0.22442404]
[1766716739654,0.02269805,89142.0,89125.0,0.01122019]
[1766716739985,0.02269805,89142.0,89118.0,0.22442155]
[1766716739986,0.01121843,89139.0,89121.0,0.0673239]
[1766716740217,0.01121843,89139.0,89118.0,0.22442155]
[1766716740218,0.01148,89142.0,89139.0,0.0004]
[1766716740421,0.00010758,89143.0,89140.0,0.0112183]
[1766716740624,0.00010758,89143.0,89139.0,0.0004]
[1766716740752,0.00010758,89143.0,89140.0,0.0112183]
[1766716740957,0.00010758,89143.0,89129.0,0.01121969]
[1766716741164,0.01121881,89136.0,89117.0,0.0112212]
[1766716741399,0.01121868,89137.0,89117.0,0.0112212]
[1766716741400,0.01121868,89137.0,89118.0,0.01122107]
[1766716741595,0.01121868,89137.0,89119.0,0.00112207]
[1766716741596,0.01121893,89135.0,89119.0,0.00112207]
[1766716741969,0.01121893,89135.0,89102.0,0.22446008]
[1766716741970,0.01121981,89128.0,89110.0,0.01122208]
[1766716742548,0.01122007,89126.0,89111.0,0.01122195]
[1766716742678,0.01121994,89127.0,89111.0,0.01122195]
[1766716742879,0.01121994,89127.0,89112.0,0.01122183]
[1766716743101,0.01121981,89128.0,89112.0,0.01122183]
[1766716743102,0.01121969,89129.0,89114.0,0.01122158]
[1766716743264,0.01121994,89127.0,89111.0,0.01122195]
[1766716743675,0.01122007,89126.0,89110.0,0.01122208]
[1766716743881,0.01121994,89127.0,89110.0,0.01122208]
[1766716744087,0.05609735,89131.0,89110.0,0.01122208]
[1766716744088,0.06731679,89131.0,89114.0,0.01122158]
[1766716744299,0.01121956,89130.0,89113.0,0.0112217]
[1766716744497,0.01121969,89129.0,89113.0,0.0112217]
[1766716744960,0.01121994,89127.0,89108.0,0.01122233]
[1766716745158,0.01122019,89125.0,89109.0,0.01122221]
[1766716745623,0.01122057,89122.0,89107.0,0.01122246]
[1766716745841,0.01122032,89124.0,89108.0,0.06733401]
[1766716746044,0.01122057,89122.0,89105.0,0.01122271]
[1766716746545,0.01122069,89121.0,89106.0,0.01122258]
[1766716746759,0.01122069,89121.0,89103.0,0.01122296]
[1766716747107,0.06732475,89121.0,89103.0,0.01122296]
[1766716747244,0.01122107,89118.0,89103.0,0.01122296]
[1766716747434,0.01122082,89120.0,89104.0,0.01122284]
[1766716747660,0.01122082,89120.0,89119.0,0.00199585]
[1766716747875,0.06732402,89122.0,89101.0,0.0565156]
[1766716747876,0.01122258,89106.0,89101.0,0.0004]
[1766716748072,0.01122208,89110.0,89101.0,0.0004]
[1766716748260,0.01122271,89105.0,89101.0,0.0004]
[1766716748455,0.01122258,89106.0,89101.0,0.0004]
[1766716748456,0.01122284,89104.0,89101.0,0.0004]
[1766716749128,0.01122347,89099.0,89096.0,0.00782248]
[1766716749388,0.05611852,89098.0,89096.0,0.00767348]
[1766716749594,0.05611852,89098.0,89076.0,0.01131636]
[1766716749595,0.01122548,89083.0,89076.0,9e-05]
[1766716749798,0.01122573,89081.0,89076.0,9e-05]
[1766716750024,0.0112241,89094.0,89081.0,0.000549]
[1766716750142,0.01144,89090.0,89076.0,9e-05]
[1766716750523,0.01122447,89091.0,89076.0,9e-05]
[1766716750524,0.01122334,89100.0,89081.0,0.01122573]
[1766716750638,0.01144,89101.0,89092.0,0.01122435]
[1766716750838,0.06732963,89114.0,89093.0,0.0011224]
[1766716751160,0.22442033,89119.0,89076.0,0.22461484]
[1766716751161,0.01144,89113.0,89099.0,0.01122347]
[1766716751342,0.0112217,89113.0,89099.0,0.00010752]
[1766716751538,0.01792185,89126.0,89099.0,0.00010752]
[1766716751539,0.05611609,89101.0,89099.0,0.00010752]
[1766716752240,0.01122258,89106.0,89065.0,0.05672]
[1766716752241,0.05612795,89083.0,89066.0,0.01122762]
[1766716752383,0.0001077,89083.0,89069.0,0.01122725]
[1766716752587,0.0001077,89083.0,89066.0,0.0673655]
[1766716752588,0.01133318,89083.0,89066.0,0.01122762]
[1766716752795,0.01133318,89083.0,89065.0,0.0004]
[1766716752796,0.01122649,89075.0,89065.0,0.0004]
[1766716752993,0.01122624,89077.0,89065.0,0.0004]
[1766716753395,0.0001077,89083.0,89077.0,0.000442]
[1766716753662,0.0001077,89083.0,89082.0,0.0011276]
[1766716753934,0.0001077,89083.0,89082.0,0.0010206]
[1766716754311,0.06735367,89082.0,89065.0,0.0004]
[1766716754479,0.0001077,89083.0,89067.0,0.0112275]
[1766716754681,0.0001077,89083.0,89065.0,0.0004]
[1766716754682,0.01122674,89073.0,89065.0,0.0004]
[1766716754885,0.01122662,89074.0,89065.0,0.0004]
[1766716755100,0.01122611,89078.0,89065.0,0.0004]
[1766716755308,0.01122649,89075.0,89065.0,0.0004]
[1766716755507,0.01122624,89077.0,89065.0,0.0004]
[1766716755708,0.01122674,89073.0,89065.0,0.0004]
[1766716755934,0.01122662,89074.0,89065.0,0.0004]
[1766716756139,0.01122674,89073.0,89065.0,0.0004]
[1766716756384,0.0004,89065.0,89057.0,0.0004]
[1766716756554,0.0112275,89067.0,89057.0,0.0004]
[1766716756765,0.01122737,89068.0,89057.0,0.0004]
[1766716757273,0.0673613,89072.0,89057.0,0.0004]
[1766716757274,0.01122473,89089.0,89070.0,0.01122712]
[1766716757613,0.01122624,89077.0,89061.0,0.01122825]
[1766716757814,0.01122649,89075.0,89057.0,0.01162876]
[1766716757983,0.01122586,89080.0,89059.0,0.01122851]
[1766716758208,0.01122636,89076.0,89060.0,0.01122838]
[1766716758412,0.01122611,89078.0,89062.0,0.01122813]
[1766716758586,0.01122687,89072.0,89057.0,0.01162876]
[1766716758912,0.01122687,89072.0,89055.0,0.06737364]
[1766716758913,0.22452558,89077.0,89044.0,0.22460744]
[1766716759104,0.01148,89087.0,88924.0,0.40961673]
[1766716759105,0.01122712,89070.0,89053.0,0.01122926]
[1766716759335,0.0112275,89067.0,89050.0,0.01122964]
[1766716759513,0.01122775,89065.0,89049.0,0.01122977]
[1766716759714,0.01122762,89066.0,89051.0,0.01122952]
[1766716759969,0.01122687,89072.0,89066.0,0.000549]
[1766716760179,0.01122699,89071.0,89066.0,0.000549]
[1766716760354,0.01122687,89072.0,89057.0,0.01122876]
[1766716760567,0.01122674,89073.0,89057.0,0.01122876]
[1766716760766,0.01122662,89074.0,89058.0,0.01235148]
[1766716760986,0.01148,89087.0,89067.0,0.0112275]
[1766716761189,0.01122624,89077.0,89074.0,0.000549]
[1766716761382,0.01122624,89077.0,89062.0,0.01122813]
[1766716761585,0.01122624,89077.0,89060.0,0.01122838]
[1766716761793,0.01122536,89084.0,89069.0,0.01122725]
[1766716762014,0.01122561,89082.0,89066.0,0.01122762]
[1766716762314,0.0112241,89094.0,89082.0,0.000441]
[1766716762432,0.0112241,89094.0,89067.0,0.00112273]
[1766716762433,0.05612428,89088.0,89068.0,0.01122737]
[1766716762644,0.05612833,89082.0,89068.0,0.00035975]
[1766716762858,0.01122662,89074.0,89068.0,0.00035975]
[1766716763304,0.01122599,89079.0,89068.0,0.00035975]
[1766716763501,0.22448636,89093.0,89068.0,0.00035975]
[1766716763502,0.01122699,89071.0,89068.0,0.00035975]
[1766716763675,0.22452896,89076.0,89068.0,0.00035975]
[1766716763676,0.01122624,89077.0,89071.0,0.000442]
[1766716763885,0.01122662,89074.0,89071.0,0.000442]
[1766716764077,0.01122624,89077.0,89068.0,0.00035975]
[1766716764303,0.01122662,89074.0,89068.0,0.00035975]
[1766716764515,0.01122662,89074.0,89068.0,0.00025275]
[1766716765125,0.01122636,89076.0,89065.0,0.00051842]
[1766716765331,0.00035924,89076.0,89061.0,0.06736945]
[1766716765540,0.01122523,89085.0,89053.0,0.01148]
[1766716765541,0.0561268,89084.0,89076.0,0.00018976]
[1766716765743,0.01122561,89082.0,89074.0,0.0002443]
[1766716766084,0.01122548,89083.0,89074.0,0.000352]
[1766716766693,0.01122536,89084.0,89074.0,0.000352]
[1766716767319,0.01122548,89083.0,89068.0,0.01122737]
[1766716767520,0.06735638,89079.0,89062.0,0.01122813]
[1766716767763,0.06735638,89079.0,89061.0,0.01122825]
[1766716767764,0.01122636,89076.0,89061.0,0.01122825]
[1766716767969,0.01122624,89077.0,89062.0,0.01122813]
[1766716768177,0.05612567,89086.0,89067.0,0.0112275]
[1766716768381,0.05612567,89086.0,89077.0,0.000541]
[1766716768382,0.01122523,89085.0,89077.0,0.000541]
[1766716768587,0.01122561,89082.0,89066.0,0.01122762]
[1766716768799,0.01122523,89085.0,89068.0,0.01122737]
[1766716769033,0.01122523,89085.0,89060.0,0.58452017]
[1766716769034,0.01122435,89092.0,89074.0,0.01122662]
[1766716769181,7.4e-07,89083.0,89077.0,0.01122624]
[1766716769514,7.4e-07,89083.0,89080.0,0.01122586]
[1766716769884,0.01122321,89101.0,89083.0,0.01122548]
[1766716770087,0.62467707,89130.0,89083.0,0.01122548]
[1766716770088,0.01122284,89104.0,89101.0,0.000434]
[1766716770294,0.01122284,89104.0,89083.0,0.01122548]
[1766716770295,0.0001078,89104.0,89092.0,0.01122435]
[1766716770499,0.0001078,89104.0,89097.0,0.01122372]
[1766716770698,0.0001078,89104.0,89101.0,0.01122321]
[1766716770896,8e-07,89104.0,89101.0,0.01122321]
[1766716771124,8e-07,89104.0,89095.0,0.01122397]
[1766716771332,8e-07,89104.0,89089.0,0.01122473]
[1766716771333,0.000665,89095.0,89089.0,0.01122473]
[1766716771527,0.01122296,89103.0,89088.0,0.01122485]
[1766716771756,0.01122296,89103.0,89087.0,0.05612433]
[1766716771757,8e-07,89104.0,89089.0,0.01122473]
[1766716772030,8e-07,89104.0,89080.0,0.58452017]
[1766716772031,0.06733779,89103.0,89084.0,0.01122536]
[1766716772262,0.01122334,89100.0,89082.0,0.01122561]
[1766716772445,0.01122334,89100.0,89080.0,0.06735494]
[1766716772446,0.01122296,89103.0,89087.0,0.01122498]
[1766716772660,0.01122359,89098.0,89082.0,0.01122561]
[1766716772791,8e-07,89104.0,89090.0,0.0112246]
[1766716772992,0.01122364,89104.0,89088.0,0.01122485]
[1766716773176,8e-07,89104.0,89092.0,0.01122435]
[1766716773379,8e-07,89104.0,89084.0,0.1]
[1766716773380,0.01122321,89101.0,89084.0,0.1]
[1766716773737,0.01122321,89101.0,89084.0,0.11122536]
[1766716773972,0.01122334,89100.0,89085.0,0.01122523]
[1766716774163,0.01122321,89101.0,89086.0,0.0112251]
[1766716774319,0.01122334,89100.0,89084.0,0.11122536]
[1766716774532,0.01122334,89100.0,89085.0,0.01122523]
[1766716774877,0.01122359,89098.0,89084.0,0.1]
[1766716775518,0.01122372,89097.0,89084.0,0.1]
[1766716775722,0.01122359,89098.0,89084.0,0.1]
[1766716776076,0.01122372,89097.0,89084.0,0.1]
[1766716776245,0.01144,89106.0,89084.0,0.09945]
[1766716776445,0.01144,89106.0,89098.0,0.01122359]
[1766716776688,0.01122019,89125.0,89102.0,0.05611484]
[1766716776899,0.02265956,89130.0,89113.0,0.0112217]
[1766716777049,0.02170437,89129.0,89113.0,0.0112217]
[1766716777263,0.01121994,89127.0,89111.0,0.01122195]
[1766716777469,0.02170475,89126.0,89110.0,0.39948857]
[1766716777695,0.02170487,89125.0,89110.0,0.01122208]
[1766716778015,0.01122057,89122.0,89106.0,0.01122258]
[1766716778226,0.01122057,89122.0,89102.0,0.01122309]
[1766716778227,0.01122107,89118.0,89102.0,0.01122309]
[1766716778452,0.01122107,89118.0,89101.0,0.01122321]
[1766716778453,0.01122132,89116.0,89101.0,0.01122321]
[1766716778653,0.01122082,89120.0,89093.0,0.01122422]
[1766716778654,0.01122221,89109.0,89093.0,0.01122422]
[1766716778784,0.01122221,89109.0,89093.0,0.0001078]
[1766716778993,0.01122271,89105.0,89093.0,0.0001078]
[1766716779447,0.01122296,89103.0,89093.0,0.0001078]
[1766716779630,0.01122309,89102.0,89093.0,0.0001078]
[1766716779854,0.01122284,89104.0,89093.0,0.0001078]
[1766716780082,0.39948857,89130.0,89102.0,0.001099]
[1766716780234,0.0112212,89117.0,89102.0,0.01122309]
[1766716780434,0.01122095,89119.0,89103.0,0.05611428]
[1766716780633,0.01122082,89120.0,89103.0,0.05611428]
[1766716780634,0.01122082,89120.0,89104.0,0.01122284]
[1766716780899,0.02266057,89122.0,89107.0,0.01122246]
[1766716781037,0.02266057,89122.0,89103.0,0.05611428]
[1766716781038,0.0112212,89117.0,89101.0,0.01122321]
[1766716781258,0.01122107,89118.0,89104.0,0.01122284]
[1766716781460,0.01144,89122.0,89107.0,0.01122246]
[1766716781679,0.01144,89122.0,89108.0,0.01122233]
[1766716782026,0.01122069,89121.0,89102.0,0.01122309]
[1766716782272,0.01144,89122.0,89092.0,0.01122435]
[1766716782474,0.01144,89122.0,89051.0,0.1461]
[1766716782475,0.05611257,89107.0,89088.0,0.01122485]
[1766716782681,0.01122258,89106.0,89091.0,0.01122447]
[1766716782859,0.01122258,89106.0,89088.0,0.0673491]
[1766716782860,0.01122271,89105.0,89088.0,0.01122485]
[1766716783055,0.01122258,89106.0,89090.0,0.0112246]
[1766716783275,0.01122246,89107.0,89090.0,0.0112246]
[1766716783471,0.01122258,89106.0,89091.0,0.01122447]